[Event "*** SCC Grand Prix: Titled Tuesday Blitz"]
[Site "Chess.com"]
[Date "2020.09.08"]
[Round "1"]
[White "gmasterkiller"]
[Black "Phenix2k"]
[Result "1-0"]
[WhiteElo "2528"]
[BlackElo "2161"]
[TimeControl "180+1"]
[EndTime "10:06:16 PDT"]
[Termination "gmasterkiller won by resignation"]

1. e4 {[%clk 0:02:59.5]} 1... e5 {[%clk 0:02:58.6]} 2. Nf3 {[%clk 0:02:58.5]}
2... Nc6 {[%clk 0:02:58.4]} 3. Bb5 {[%clk 0:02:56.8]} 3... a6 {[%clk 0:02:58.1]}
4. Ba4 {[%clk 0:02:55.8]} 4... Nf6 {[%clk 0:02:57.9]} 5. O-O {[%clk 0:02:55.2]}
5... Be7 {[%clk 0:02:55.2]} 6. d3 {[%clk 0:02:54.2]} 6... d6 {[%clk 0:02:52.1]}
7. c3 {[%clk 0:02:51.5]} 7... O-O {[%clk 0:02:52.1]} 8. Nbd2 {[%clk 0:02:41.3]}
8... Re8 {[%clk 0:02:51.3]} 9. Re1 {[%clk 0:02:39.1]} 9... Bf8 {[%clk
0:02:51.4]} 10. Nf1 {[%clk 0:02:38]} 10... b5 {[%clk 0:02:49.5]} 11. Bb3 {[%clk
0:02:37.3]} 11... d5 {[%clk 0:02:49.1]} 12. Ng3 {[%clk 0:02:36.1]} 12... dxe4
{[%clk 0:02:44.5]} 13. dxe4 {[%clk 0:02:35.4]} 13... Qxd1 {[%clk 0:02:44.5]} 14.
Rxd1 {[%clk 0:02:35.3]} 14... Bc5 {[%clk 0:02:37.2]} 15. h3 {[%clk 0:02:31.2]}
15... h6 {[%clk 0:02:35.2]} 16. a4 {[%clk 0:02:30.1]} 16... b4 {[%clk
0:02:22.8]} 17. Nd2 {[%clk 0:02:19.2]} 17... Be6 {[%clk 0:02:09.2]} 18. Bxe6
{[%clk 0:02:15.5]} 18... Rxe6 {[%clk 0:02:10.1]} 19. Nc4 {[%clk 0:02:15.5]}
19... Ree8 {[%clk 0:01:58.5]} 20. Be3 {[%clk 0:02:11.1]} 20... Bxe3 {[%clk
0:01:56.4]} 21. Nxe3 {[%clk 0:02:12]} 21... bxc3 {[%clk 0:01:51.7]} 22. bxc3
{[%clk 0:02:11.8]} 22... Red8 {[%clk 0:01:45.9]} 23. Nd5 {[%clk 0:01:59.2]}
23... Nxd5 {[%clk 0:01:43.7]} 24. exd5 {[%clk 0:01:57.9]} 24... Na5 {[%clk
0:01:36.6]} 25. Nf5 {[%clk 0:01:44.5]} 25... Kf8 {[%clk 0:01:33]} 26. Ne3 {[%clk
0:01:44.1]} 26... Ke7 {[%clk 0:01:21]} 27. Rab1 {[%clk 0:01:38.8]} 27... Rab8
{[%clk 0:01:19.5]} 28. Rb4 {[%clk 0:01:38.9]} 28... c6 {[%clk 0:01:11.1]} 29.
d6+ {[%clk 0:01:37.4]} 29... Kd7 {[%clk 0:01:09.6]} 30. h4 {[%clk 0:01:29.8]}
30... c5 {[%clk 0:01:04.6]} 31. Rg4 {[%clk 0:01:24.7]} 31... g6 {[%clk
0:01:03.3]} 32. Rd5 {[%clk 0:01:23.3]} 32... Nb7 {[%clk 0:00:59.5]} 33. Nc4
{[%clk 0:01:21.2]} 33... f6 {[%clk 0:00:55.9]} 34. Rxg6 {[%clk 0:01:20.3]} 34...
Ke6 {[%clk 0:00:55.7]} 35. Rd1 {[%clk 0:01:15.4]} 35... Nxd6 {[%clk 0:00:54.4]}
36. Rxd6+ {[%clk 0:01:14.1]} 36... Rxd6 {[%clk 0:00:54.3]} 37. Nxd6 {[%clk
0:01:15]} 37... Kxd6 {[%clk 0:00:54.9]} 38. Rxf6+ {[%clk 0:01:15.3]} 38... Kd5
{[%clk 0:00:55.4]} 39. Rxa6 {[%clk 0:01:15.4]} 39... Rb1+ {[%clk 0:00:54.4]} 40.
Kh2 {[%clk 0:01:14.7]} 40... Kc4 {[%clk 0:00:50.5]} 41. Rxh6 {[%clk 0:01:12.5]}
41... Kxc3 {[%clk 0:00:50.2]} 42. h5 {[%clk 0:01:11]} 42... c4 {[%clk
0:00:48.7]} 43. Rc6 {[%clk 0:01:09.9]} 43... Ra1 {[%clk 0:00:47.6]} 44. g4
{[%clk 0:01:07.9]} 44... Rxa4 {[%clk 0:00:47]} 45. Kg3 {[%clk 0:01:08.1]} 45...
Kd3 {[%clk 0:00:46.4]} 46. h6 {[%clk 0:01:07.7]} 46... Ra5 {[%clk 0:00:44.3]}
47. h7 {[%clk 0:01:04.2]} 47... Ra8 {[%clk 0:00:44.7]} 48. g5 {[%clk 0:01:04.1]}
48... c3 {[%clk 0:00:44.7]} 49. g6 {[%clk 0:01:04.1]} 49... e4 {[%clk
0:00:44.9]} 50. g7 {[%clk 0:01:03.4]} 1-0

[Event "*** SCC Grand Prix: Titled Tuesday Blitz"]
[Site "Chess.com"]
[Date "2020.09.08"]
[Round "1"]
[White "Agnes66678"]
[Black "DarZay"]
[Result "1-0"]
[WhiteElo "2503"]
[BlackElo "2083"]
[TimeControl "180+1"]
[EndTime "10:06:17 PDT"]
[Termination "Agnes66678 won by resignation"]

1. Nf3 {[%clk 0:02:57.8]} 1... d5 {[%clk 0:02:58.2]} 2. g3 {[%clk 0:02:57.8]}
2... c5 {[%clk 0:02:54.5]} 3. Bg2 {[%clk 0:02:58]} 3... e6 {[%clk 0:02:52.2]} 4.
O-O {[%clk 0:02:57.7]} 4... Nf6 {[%clk 0:02:50.8]} 5. c4 {[%clk 0:02:58.6]} 5...
d4 {[%clk 0:02:47.6]} 6. e3 {[%clk 0:02:58.5]} 6... Nc6 {[%clk 0:02:45.8]} 7.
exd4 {[%clk 0:02:59.4]} 7... Nxd4 {[%clk 0:02:29.6]} 8. Nc3 {[%clk 0:02:54.8]}
8... Be7 {[%clk 0:02:26.9]} 9. Nxd4 {[%clk 0:02:51.8]} 9... Qxd4 {[%clk
0:02:22.6]} 10. Qb3 {[%clk 0:02:50.3]} 10... Qd7 {[%clk 0:02:19.7]} 11. d3
{[%clk 0:02:41.4]} 11... O-O {[%clk 0:02:17.7]} 12. Be3 {[%clk 0:02:40.2]} 12...
Qxd3 {[%clk 0:02:13.3]} 13. Rad1 {[%clk 0:02:40]} 13... Qf5 {[%clk 0:02:07.1]}
14. Qb5 {[%clk 0:02:33]} 14... a6 {[%clk 0:02:03.5]} 15. Qb6 {[%clk 0:02:32.6]}
15... Bd7 {[%clk 0:01:46.2]} 16. b3 {[%clk 0:02:29.2]} 16... Rab8 {[%clk
0:01:43.5]} 17. Rd2 {[%clk 0:02:26.2]} 17... Rfc8 {[%clk 0:01:40.6]} 18. Rfd1
{[%clk 0:02:24.2]} 18... Bc6 {[%clk 0:01:39.9]} 19. Bxc6 {[%clk 0:02:20.8]}
19... Rxc6 {[%clk 0:01:29.4]} 20. Qa7 {[%clk 0:02:10.4]} 20... Rcc8 {[%clk
0:01:29.1]} 21. Na4 {[%clk 0:02:08.6]} 21... Qf3 {[%clk 0:01:18.9]} 22. Nxc5
{[%clk 0:01:59.2]} 22... Qf5 {[%clk 0:01:07.6]} 23. Nd7 {[%clk 0:01:55.1]} 23...
Qh3 {[%clk 0:00:53.6]} 24. Nxf6+ {[%clk 0:01:52]} 24... Bxf6 {[%clk 0:00:52.8]}
25. Bf4 {[%clk 0:01:44.6]} 25... Ra8 {[%clk 0:00:51.2]} 26. Qxb7 {[%clk
0:01:43.7]} 26... h6 {[%clk 0:00:47.9]} 27. Qg2 {[%clk 0:01:41.5]} 27... Qf5
{[%clk 0:00:47]} 28. Bd6 {[%clk 0:01:41.2]} 28... Rd8 {[%clk 0:00:44.6]} 29. c5
{[%clk 0:01:41.1]} 29... a5 {[%clk 0:00:44]} 30. c6 {[%clk 0:01:40.8]} 30... Bc3
{[%clk 0:00:41.2]} 31. Rd3 {[%clk 0:01:38.2]} 31... Bb4 {[%clk 0:00:39.2]} 32.
g4 {[%clk 0:01:34.3]} 32... Qg6 {[%clk 0:00:34.3]} 33. c7 {[%clk 0:01:34]} 33...
Rdc8 {[%clk 0:00:21.1]} 34. Bxb4 {[%clk 0:01:31.7]} 34... axb4 {[%clk
0:00:20.8]} 35. Rd8+ {[%clk 0:01:31.9]} 35... Kh7 {[%clk 0:00:19.9]} 36. h4
{[%clk 0:01:24.5]} 36... Rxd8 {[%clk 0:00:16.9]} 37. cxd8=Q {[%clk 0:01:23.2]}
37... Rxd8 {[%clk 0:00:16.7]} 38. Rxd8 {[%clk 0:01:24.1]} 38... Qb1+ {[%clk
0:00:16.9]} 39. Qf1 {[%clk 0:01:24]} 39... Qe4 {[%clk 0:00:15.6]} 40. Qd3 {[%clk
0:01:24.3]} 40... Qxd3 {[%clk 0:00:14.5]} 41. Rxd3 {[%clk 0:01:25.2]} 1-0

[Event "*** SCC Grand Prix: Titled Tuesday Blitz"]
[Site "Chess.com"]
[Date "2020.09.08"]
[Round "1"]
[White "Thee-Chessboy"]
[Black "denispopov"]
[Result "1-0"]
[WhiteElo "2479"]
[BlackElo "1935"]
[TimeControl "180+1"]
[EndTime "10:06:18 PDT"]
[Termination "Thee-Chessboy won by resignation"]

1. d4 {[%clk 0:03:00.9]} 1... Nf6 {[%clk 0:02:59.3]} 2. c4 {[%clk 0:03:01.1]}
2... g6 {[%clk 0:02:59.3]} 3. Nf3 {[%clk 0:03:00.8]} 3... Bg7 {[%clk 0:02:58.3]}
4. g3 {[%clk 0:03:01.1]} 4... O-O {[%clk 0:02:55.6]} 5. Bg2 {[%clk 0:03:01.3]}
5... c6 {[%clk 0:02:51.5]} 6. O-O {[%clk 0:03:01.2]} 6... d5 {[%clk 0:02:50.1]}
7. cxd5 {[%clk 0:02:59.9]} 7... cxd5 {[%clk 0:02:46.9]} 8. Ne5 {[%clk
0:02:59.9]} 8... Nbd7 {[%clk 0:02:33.3]} 9. Nc3 {[%clk 0:02:59]} 9... Qa5 {[%clk
0:02:30.1]} 10. Bd2 {[%clk 0:02:47.9]} 10... e6 {[%clk 0:02:25.1]} 11. Nxd5
{[%clk 0:02:46.8]} 11... Qd8 {[%clk 0:02:20.7]} 12. Nxf6+ {[%clk 0:02:41.6]}
12... Bxf6 {[%clk 0:02:21.6]} 13. Nf3 {[%clk 0:02:29.1]} 13... Nb6 {[%clk
0:02:04]} 14. e3 {[%clk 0:02:13.9]} 14... Bd7 {[%clk 0:01:38]} 15. Qe2 {[%clk
0:02:08.7]} 15... Qe8 {[%clk 0:01:23.1]} 16. Rfc1 {[%clk 0:02:01.7]} 16... Bb5
{[%clk 0:01:22.2]} 17. Qe1 {[%clk 0:02:00.9]} 17... Nc4 {[%clk 0:01:14.6]} 18.
Bb4 {[%clk 0:01:54.4]} 18... Be7 {[%clk 0:01:12.9]} 19. b3 {[%clk 0:01:41]}
19... Nb6 {[%clk 0:01:05.2]} 20. Ne5 {[%clk 0:01:37.5]} 20... Rc8 {[%clk
0:00:30.9]} 21. Rxc8 {[%clk 0:01:28.5]} 21... Nxc8 {[%clk 0:00:30.2]} 22. Bxb7
{[%clk 0:01:28.1]} 22... Nd6 {[%clk 0:00:26]} 23. Bg2 {[%clk 0:01:26.8]} 23...
Nf5 {[%clk 0:00:25.3]} 24. Rc1 {[%clk 0:01:25]} 24... Qd8 {[%clk 0:00:14.8]} 25.
a4 {[%clk 0:01:22.6]} 25... Ba6 {[%clk 0:00:14]} 26. Nc6 {[%clk 0:01:22.1]}
26... Qd7 {[%clk 0:00:13.7]} 27. Nxe7+ {[%clk 0:01:16.5]} 27... Nxe7 {[%clk
0:00:14.6]} 28. Bxe7 {[%clk 0:01:12.8]} 28... Qxe7 {[%clk 0:00:15.5]} 29. Qa5
{[%clk 0:01:12.6]} 29... Qd6 {[%clk 0:00:10.5]} 30. Rc5 {[%clk 0:01:03.8]} 30...
Bc8 {[%clk 0:00:05.7]} 31. Qc7 {[%clk 0:01:01.8]} 1-0

[Event "*** SCC Grand Prix: Titled Tuesday Blitz"]
[Site "Chess.com"]
[Date "2020.09.08"]
[Round "1"]
[White "GigaQuparadze"]
[Black "ketster"]
[Result "1-0"]
[WhiteElo "2909"]
[BlackElo "2449"]
[TimeControl "180+1"]
[EndTime "10:06:20 PDT"]
[Termination "GigaQuparadze won on time"]

1. e4 {[%clk 0:02:42]} 1... e5 {[%clk 0:02:59.7]} 2. Nf3 {[%clk 0:02:41.4]} 2...
Nc6 {[%clk 0:02:59.7]} 3. Bc4 {[%clk 0:02:40.9]} 3... Nf6 {[%clk 0:02:59.2]} 4.
d3 {[%clk 0:02:40.6]} 4... Be7 {[%clk 0:02:59.3]} 5. O-O {[%clk 0:02:39.5]} 5...
O-O {[%clk 0:02:56.5]} 6. Nc3 {[%clk 0:02:40]} 6... d6 {[%clk 0:02:54.5]} 7. h3
{[%clk 0:02:40.2]} 7... Na5 {[%clk 0:02:48.4]} 8. a4 {[%clk 0:02:38.2]} 8... Be6
{[%clk 0:02:43.1]} 9. b3 {[%clk 0:02:36.2]} 9... Nxc4 {[%clk 0:02:40.3]} 10.
dxc4 {[%clk 0:02:37.1]} 10... c6 {[%clk 0:02:40.3]} 11. Ba3 {[%clk 0:02:36.7]}
11... Qc7 {[%clk 0:02:39.7]} 12. Qe2 {[%clk 0:02:36.8]} 12... h6 {[%clk
0:02:30.1]} 13. Rfd1 {[%clk 0:02:34.5]} 13... Rad8 {[%clk 0:02:26.1]} 14. Rd2
{[%clk 0:02:32.7]} 14... Nh5 {[%clk 0:02:19.7]} 15. Rad1 {[%clk 0:02:31.6]}
15... Nf4 {[%clk 0:02:19.1]} 16. Qe3 {[%clk 0:02:26.6]} 16... Rd7 {[%clk
0:02:08.8]} 17. Nxe5 {[%clk 0:02:22.7]} 17... dxe5 {[%clk 0:01:59.5]} 18. Rxd7
{[%clk 0:02:21.9]} 18... Bxd7 {[%clk 0:01:43.3]} 19. Bxe7 {[%clk 0:02:21.8]}
19... Re8 {[%clk 0:01:27.3]} 20. Bd6 {[%clk 0:02:18.4]} 20... Qc8 {[%clk
0:01:27]} 21. Ne2 {[%clk 0:02:11.8]} 21... Ng6 {[%clk 0:01:23.8]} 22. Qxa7
{[%clk 0:02:06.4]} 22... h5 {[%clk 0:01:16.6]} 23. Qe3 {[%clk 0:02:05.6]} 23...
h4 {[%clk 0:01:08.5]} 24. Bc5 {[%clk 0:02:05.4]} 24... Be6 {[%clk 0:01:04.2]}
25. Bb6 {[%clk 0:02:04.9]} 25... Rf8 {[%clk 0:00:47.2]} 26. Qg5 {[%clk
0:02:02.9]} 26... Bxh3 {[%clk 0:00:28]} 27. gxh3 {[%clk 0:02:01.8]} 27... Qxh3
{[%clk 0:00:25.1]} 28. Rd3 {[%clk 0:02:01.1]} 28... Qe6 {[%clk 0:00:20]} 29. Bc5
{[%clk 0:01:57.4]} 29... Re8 {[%clk 0:00:19.3]} 30. Rd6 {[%clk 0:01:56.2]} 30...
Qc8 {[%clk 0:00:18.3]} 31. Bb6 {[%clk 0:01:53.6]} 31... Qh3 {[%clk 0:00:17.8]}
32. Qg2 {[%clk 0:01:50.6]} 32... Qc8 {[%clk 0:00:15.9]} 33. f3 {[%clk
0:01:50.6]} 33... h3 {[%clk 0:00:14.2]} 34. Qg4 {[%clk 0:01:50]} 34... Qa8
{[%clk 0:00:06.2]} 35. Qxh3 {[%clk 0:01:46.7]} 35... Qb8 {[%clk 0:00:05.7]} 36.
c5 {[%clk 0:01:46.1]} 36... Qa8 {[%clk 0:00:05.1]} 37. Qd7 {[%clk 0:01:44.8]}
37... Rf8 {[%clk 0:00:04.5]} 38. c4 {[%clk 0:01:43.2]} 38... Qa6 {[%clk
0:00:01.4]} 39. Kf2 {[%clk 0:01:41.4]} 39... Qa8 {[%clk 0:00:01.5]} 40. Qd8
{[%clk 0:01:40.2]} 1-0

[Event "*** SCC Grand Prix: Titled Tuesday Blitz"]
[Site "Chess.com"]
[Date "2020.09.08"]
[Round "1"]
[White "Iball95"]
[Black "Mikheev1976"]
[Result "1-0"]
[WhiteElo "2718"]
[BlackElo "2372"]
[TimeControl "180+1"]
[EndTime "10:06:20 PDT"]
[Termination "Iball95 won by resignation"]

1. d4 {[%clk 0:02:58.9]} 1... Nf6 {[%clk 0:02:59.3]} 2. Nf3 {[%clk 0:02:59.2]}
2... g6 {[%clk 0:02:59.3]} 3. g3 {[%clk 0:02:59.4]} 3... Bg7 {[%clk 0:02:59.7]}
4. Bg2 {[%clk 0:03:00.3]} 4... O-O {[%clk 0:03:00]} 5. O-O {[%clk 0:03:00.9]}
5... d5 {[%clk 0:02:59.7]} 6. c3 {[%clk 0:03:00.5]} 6... a5 {[%clk 0:02:54.6]}
7. Bf4 {[%clk 0:02:52.4]} 7... Nbd7 {[%clk 0:02:47.2]} 8. Re1 {[%clk 0:02:49.4]}
8... Ne4 {[%clk 0:02:45.8]} 9. Nbd2 {[%clk 0:02:49]} 9... Ndf6 {[%clk
0:02:44.2]} 10. Ne5 {[%clk 0:02:40.2]} 10... Bf5 {[%clk 0:02:38.7]} 11. f3
{[%clk 0:02:40.1]} 11... Nxd2 {[%clk 0:02:38]} 12. Qxd2 {[%clk 0:02:41]} 12...
Nd7 {[%clk 0:02:33.2]} 13. Nd3 {[%clk 0:02:09.2]} 13... Nb6 {[%clk 0:02:25.3]}
14. b3 {[%clk 0:02:06.7]} 14... Nd7 {[%clk 0:02:08.9]} 15. e4 {[%clk 0:02:04.6]}
15... Be6 {[%clk 0:02:06.2]} 16. Bh6 {[%clk 0:02:01.7]} 16... c6 {[%clk
0:01:36]} 17. Bxg7 {[%clk 0:01:52.1]} 17... Kxg7 {[%clk 0:01:36.9]} 18. Nf4
{[%clk 0:01:50.9]} 18... Qb6 {[%clk 0:01:23.7]} 19. exd5 {[%clk 0:01:12.3]}
19... cxd5 {[%clk 0:01:10.1]} 20. Re3 {[%clk 0:01:09.4]} 20... a4 {[%clk
0:01:02.8]} 21. b4 {[%clk 0:01:06.6]} 21... Bf5 {[%clk 0:00:48.6]} 22. Nxd5
{[%clk 0:01:00]} 22... Qc6 {[%clk 0:00:48.8]} 23. Nxe7 {[%clk 0:00:58]} 23...
Qf6 {[%clk 0:00:48.6]} 24. Nxf5+ {[%clk 0:00:45.5]} 24... Qxf5 {[%clk
0:00:49.5]} 25. c4 {[%clk 0:00:42.3]} 25... Nb6 {[%clk 0:00:46.8]} 26. Rc1
{[%clk 0:00:37.7]} 26... Rac8 {[%clk 0:00:45.8]} 27. Rec3 {[%clk 0:00:34.5]}
27... Rfd8 {[%clk 0:00:42.4]} 28. f4 {[%clk 0:00:34.6]} 28... Qd7 {[%clk
0:00:38.1]} 29. d5 {[%clk 0:00:34.1]} 29... a3 {[%clk 0:00:36.1]} 30. Qd4+
{[%clk 0:00:33.8]} 1-0

[Event "*** SCC Grand Prix: Titled Tuesday Blitz"]
[Site "Chess.com"]
[Date "2020.09.08"]
[Round "1"]
[White "ChessLover0108"]
[Black "Alindsay211"]
[Result "1-0"]
[WhiteElo "2656"]
[BlackElo "2322"]
[TimeControl "180+1"]
[EndTime "10:06:21 PDT"]
[Termination "ChessLover0108 won by resignation"]

1. d4 {[%clk 0:02:58.7]} 1... d5 {[%clk 0:02:58.2]} 2. c4 {[%clk 0:02:58.9]}
2... c6 {[%clk 0:02:51.3]} 3. Nf3 {[%clk 0:02:55]} 3... Nf6 {[%clk 0:02:47.8]}
4. e3 {[%clk 0:02:55]} 4... a6 {[%clk 0:02:46.5]} 5. Nc3 {[%clk 0:02:54]} 5...
Bg4 {[%clk 0:02:43.1]} 6. Qc2 {[%clk 0:02:53.3]} 6... Bxf3 {[%clk 0:02:41.2]} 7.
gxf3 {[%clk 0:02:53.1]} 7... e6 {[%clk 0:02:36.2]} 8. Bd2 {[%clk 0:02:48.8]}
8... Bd6 {[%clk 0:02:25.3]} 9. f4 {[%clk 0:02:47.9]} 9... b5 {[%clk 0:02:22.7]}
10. b3 {[%clk 0:02:45.8]} 10... Nbd7 {[%clk 0:02:14.8]} 11. Bd3 {[%clk
0:02:34.7]} 11... g6 {[%clk 0:02:00.8]} 12. a4 {[%clk 0:02:29.1]} 12... bxc4
{[%clk 0:01:52.9]} 13. bxc4 {[%clk 0:02:30]} 13... Bb4 {[%clk 0:01:52.1]} 14.
O-O {[%clk 0:02:05.6]} 14... Bxc3 {[%clk 0:01:46.4]} 15. Bxc3 {[%clk 0:02:04.3]}
15... O-O {[%clk 0:01:42.8]} 16. c5 {[%clk 0:02:01.9]} 16... Nh5 {[%clk
0:01:21.8]} 17. f3 {[%clk 0:01:58]} 17... Qh4 {[%clk 0:01:15.8]} 18. a5 {[%clk
0:01:51.4]} 18... Ng7 {[%clk 0:01:06.7]} 19. Rab1 {[%clk 0:01:45.2]} 19... Nf5
{[%clk 0:01:06.1]} 20. Qf2 {[%clk 0:01:44.4]} 20... Qd8 {[%clk 0:00:46.9]} 21.
Qe2 {[%clk 0:01:39.8]} 21... Qc8 {[%clk 0:00:45.9]} 22. Rb2 {[%clk 0:01:38.3]}
22... f6 {[%clk 0:00:44.6]} 23. Rfb1 {[%clk 0:01:36.1]} 23... e5 {[%clk
0:00:44.9]} 24. Bxf5 {[%clk 0:01:31.5]} 24... gxf5 {[%clk 0:00:43.6]} 25. dxe5
{[%clk 0:01:31.9]} 25... fxe5 {[%clk 0:00:43.1]} 26. Kh1 {[%clk 0:01:29.9]}
26... Rf6 {[%clk 0:00:32.6]} 27. fxe5 {[%clk 0:01:17.2]} 27... Rg6 {[%clk
0:00:32.7]} 28. e6 {[%clk 0:01:04.1]} 28... Nxc5 {[%clk 0:00:30.3]} 29. e7
{[%clk 0:00:52.2]} 29... Qe6 {[%clk 0:00:22.3]} 30. Rb8+ {[%clk 0:00:50.3]} 1-0

[Event "*** SCC Grand Prix: Titled Tuesday Blitz"]
[Site "Chess.com"]
[Date "2020.09.08"]
[Round "1"]
[White "Beca95"]
[Black "ExtremeLearner"]
[Result "1-0"]
[WhiteElo "2922"]
[BlackElo "2454"]
[TimeControl "180+1"]
[EndTime "10:06:26 PDT"]
[Termination "Beca95 won by resignation"]

1. d4 {[%clk 0:03:00.2]} 1... Nf6 {[%clk 0:02:59]} 2. c4 {[%clk 0:02:59.8]} 2...
c5 {[%clk 0:02:54]} 3. d5 {[%clk 0:02:58.6]} 3... b5 {[%clk 0:02:54.4]} 4. Qc2
{[%clk 0:02:57.9]} 4... b4 {[%clk 0:02:51.3]} 5. e4 {[%clk 0:02:57.8]} 5... d6
{[%clk 0:02:50.4]} 6. Bd3 {[%clk 0:02:57.6]} 6... a5 {[%clk 0:02:49]} 7. a3
{[%clk 0:02:56.8]} 7... Bb7 {[%clk 0:02:49.3]} 8. f4 {[%clk 0:02:50.4]} 8...
Nbd7 {[%clk 0:02:46.6]} 9. Nf3 {[%clk 0:02:48.9]} 9... g6 {[%clk 0:02:46.9]} 10.
b3 {[%clk 0:02:48]} 10... Bg7 {[%clk 0:02:46.8]} 11. Bb2 {[%clk 0:02:48.4]}
11... O-O {[%clk 0:02:47.5]} 12. O-O {[%clk 0:02:47.6]} 12... e6 {[%clk
0:02:42.2]} 13. Nbd2 {[%clk 0:02:45.5]} 13... exd5 {[%clk 0:02:41.9]} 14. cxd5
{[%clk 0:02:46.2]} 14... Re8 {[%clk 0:02:39.2]} 15. Rae1 {[%clk 0:02:42.2]}
15... Nb6 {[%clk 0:02:31.9]} 16. Bb5 {[%clk 0:02:36.7]} 16... Rf8 {[%clk
0:02:26.6]} 17. a4 {[%clk 0:02:35.9]} 17... Rc8 {[%clk 0:02:17.9]} 18. Nc4
{[%clk 0:02:33.7]} 18... h5 {[%clk 0:02:06.5]} 19. Nxa5 {[%clk 0:02:30.4]} 19...
Ba8 {[%clk 0:02:03]} 20. Nc6 {[%clk 0:02:29.6]} 20... Qc7 {[%clk 0:01:59.7]} 21.
Bxf6 {[%clk 0:02:05.9]} 21... Bxf6 {[%clk 0:01:58.6]} 22. a5 {[%clk 0:02:06.4]}
22... c4 {[%clk 0:01:50]} 23. bxc4 {[%clk 0:02:04.5]} 23... Nd7 {[%clk
0:01:45.9]} 24. Kh1 {[%clk 0:01:53.6]} 24... Bc3 {[%clk 0:01:41.4]} 25. Re3
{[%clk 0:01:52.4]} 25... Nc5 {[%clk 0:01:39.6]} 26. e5 {[%clk 0:01:51.1]} 26...
Bxc6 {[%clk 0:01:29.3]} 27. Bxc6 {[%clk 0:01:44.9]} 27... dxe5 {[%clk
0:01:17.2]} 28. fxe5 {[%clk 0:01:44.9]} 28... Qxa5 {[%clk 0:01:17.3]} 29. e6
{[%clk 0:01:43]} 29... Nxe6 {[%clk 0:01:10.5]} 30. Rxe6 {[%clk 0:01:38.6]} 30...
fxe6 {[%clk 0:01:09.3]} 31. Qxg6+ {[%clk 0:01:38.5]} 31... Bg7 {[%clk
0:01:09.5]} 32. Bd7 {[%clk 0:01:38.9]} 32... Rf6 {[%clk 0:00:56.3]} 33. Bxe6+
{[%clk 0:01:27.9]} 33... Kf8 {[%clk 0:00:55.5]} 34. Nd2 {[%clk 0:01:21.4]} 34...
Rxf1+ {[%clk 0:00:31.9]} 35. Nxf1 {[%clk 0:01:22.3]} 35... Rc7 {[%clk
0:00:32.1]} 36. Qf5+ {[%clk 0:01:20.1]} 36... Ke8 {[%clk 0:00:30]} 37. Qxh5+
{[%clk 0:01:19.7]} 37... Ke7 {[%clk 0:00:25.6]} 38. d6+ {[%clk 0:01:19]} 38...
Kxe6 {[%clk 0:00:22.8]} 39. Qxa5 {[%clk 0:01:19.3]} 39... Rxc4 {[%clk
0:00:23.3]} 40. Qb5 {[%clk 0:01:16.7]} 40... Rc1 {[%clk 0:00:22.1]} 41. d7
{[%clk 0:01:16.6]} 41... Bf6 {[%clk 0:00:20.4]} 42. g3 {[%clk 0:01:16.8]} 42...
Rd1 {[%clk 0:00:18.6]} 43. Qe2+ {[%clk 0:01:14.1]} 1-0

[Event "*** SCC Grand Prix: Titled Tuesday Blitz"]
[Site "Chess.com"]
[Date "2020.09.08"]
[Round "1"]
[White "mr65"]
[Black "Bayernbk"]
[Result "0-1"]
[WhiteElo "2149"]
[BlackElo "2522"]
[TimeControl "180+1"]
[EndTime "10:06:30 PDT"]
[Termination "Bayernbk won by resignation"]

1. e4 {[%clk 0:02:57.5]} 1... e6 {[%clk 0:02:55.7]} 2. d4 {[%clk 0:02:56.4]}
2... d5 {[%clk 0:02:56.6]} 3. Nc3 {[%clk 0:02:56.3]} 3... Nf6 {[%clk 0:02:56.5]}
4. e5 {[%clk 0:02:55.8]} 4... Nfd7 {[%clk 0:02:56.6]} 5. f4 {[%clk 0:02:55.7]}
5... c5 {[%clk 0:02:57.2]} 6. Nf3 {[%clk 0:02:55.8]} 6... Nc6 {[%clk 0:02:57.7]}
7. Be3 {[%clk 0:02:55.8]} 7... a6 {[%clk 0:02:58.3]} 8. Qd2 {[%clk 0:02:55.4]}
8... b5 {[%clk 0:02:58.7]} 9. a3 {[%clk 0:02:47.6]} 9... Qb6 {[%clk 0:02:57.9]}
10. Be2 {[%clk 0:02:44.6]} 10... cxd4 {[%clk 0:02:43]} 11. Bxd4 {[%clk
0:02:33.3]} 11... Nxd4 {[%clk 0:02:41.1]} 12. Nxd4 {[%clk 0:02:32.8]} 12... Bc5
{[%clk 0:02:36.9]} 13. Nb3 {[%clk 0:02:14.8]} 13... Bf2+ {[%clk 0:02:33.5]} 14.
Kf1 {[%clk 0:02:12.1]} 14... Be3 {[%clk 0:02:32.7]} 15. Qe1 {[%clk 0:02:02.9]}
15... Bxf4 {[%clk 0:02:32.2]} 16. a4 {[%clk 0:01:57.7]} 16... b4 {[%clk
0:02:25.5]} 17. a5 {[%clk 0:01:55.5]} 17... Qe3 {[%clk 0:02:25.5]} 18. Nd1
{[%clk 0:01:47.5]} 18... Qxe5 {[%clk 0:02:23.9]} 19. g3 {[%clk 0:01:47.1]} 19...
Bh6 {[%clk 0:02:18.3]} 20. Nf2 {[%clk 0:01:40.8]} 20... Qxb2 {[%clk 0:02:08.7]}
21. Rd1 {[%clk 0:01:35.3]} 21... Qc3 {[%clk 0:02:00]} 22. Qxc3 {[%clk
0:01:27.2]} 22... bxc3 {[%clk 0:02:00]} 23. Nd3 {[%clk 0:01:19.9]} 23... O-O
{[%clk 0:01:58.5]} 24. Bf3 {[%clk 0:01:17.4]} 24... Bb7 {[%clk 0:01:57]} 25. Kg2
{[%clk 0:01:11.9]} 25... Rab8 {[%clk 0:01:51.6]} 26. Ndc5 {[%clk 0:01:07.7]}
26... Ne5 {[%clk 0:01:43.2]} 27. Rhe1 {[%clk 0:01:01.6]} 27... Nxf3 {[%clk
0:01:38.4]} 28. Kxf3 {[%clk 0:01:00.1]} 28... g6 {[%clk 0:01:35.5]} 29. Nd7
{[%clk 0:00:56.6]} 29... d4+ {[%clk 0:00:59.3]} 30. Ke2 {[%clk 0:00:56]} 30...
e5 {[%clk 0:00:51.5]} 31. Nxb8 {[%clk 0:00:48.7]} 31... Rxb8 {[%clk 0:00:51]}
32. Nc5 {[%clk 0:00:43.1]} 32... Bc8 {[%clk 0:00:49.3]} 33. Rb1 {[%clk
0:00:42.6]} 33... Rb2 {[%clk 0:00:49.3]} 34. Kd3 {[%clk 0:00:38.9]} 34... Bf5+
{[%clk 0:00:48.3]} 35. Kc4 {[%clk 0:00:37.1]} 35... Bxc2 {[%clk 0:00:47.8]} 36.
Nxa6 {[%clk 0:00:33.4]} 36... Rxb1 {[%clk 0:00:46.9]} 37. Rxb1 {[%clk
0:00:32.5]} 37... Bxb1 {[%clk 0:00:47.1]} 38. Nb4 {[%clk 0:00:31.9]} 38... c2
{[%clk 0:00:46.3]} 39. Nxc2 {[%clk 0:00:30.7]} 39... Bxc2 {[%clk 0:00:46.4]} 40.
a6 {[%clk 0:00:30.5]} 40... Be4 {[%clk 0:00:46.2]} 0-1